bitfinex-derivatives/quotes_SOLF0:USTF0_20241107
["timestamp","ask_amount","ask_price","bid_price","bid_amount"]
[1731022053835,7.87667611,194.88,194.8,66.0121598]
[1731022054033,7.87667611,194.87,194.82,7.87667611]
[1731022054231,7.87667611,194.87,194.83,6.11150918]
[1731022054434,7.87667611,194.87,194.83,2.5643]
[1731022055235,7.87667611,194.87,194.8,66.0121598]
[1731022055435,7.87667611,194.85,194.82,2.5645]
[1731022055933,7.87667611,194.85,194.82,10.44117611]
[1731022058538,10.47667611,194.87,194.82,7.87667611]
[1731022058744,1.2628,194.92,194.76,2.6]
[1731022058745,2.5635,194.9,194.86,2.5639]
[1731022059036,2.5635,194.9,194.87,7.87667611]
[1731022059440,2.6,194.91,194.87,7.87667611]
[1731022059636,2.6,194.91,194.89,7.87667611]
[1731022060539,2.6,194.91,194.9,2.5634]
[1731022061735,1.2458,194.93,194.9,2.5634]
[1731022063545,1.2458,194.93,194.83,2.6]
[1731022063745,1.2458,194.93,194.89,7.87667611]
[1731022064741,1.2458,194.93,194.9,2.5634]
[1731022065051,1.2458,194.93,194.89,7.87667611]
[1731022066050,1.2458,194.93,194.89,10.44017611]
[1731022067945,7.87667611,194.92,194.88,7.87667611]
[1731022068349,7.87667611,194.9,194.81,2.6]
[1731022068549,7.87667611,194.87,194.83,2.5643]
[1731022068949,7.87667611,194.87,194.82,7.87667611]
[1731022069148,7.87667611,194.87,194.83,6.11819689]
[1731022069457,7.87667611,194.87,194.84,2.5642]
[1731022069947,2.5637,194.88,194.85,7.87667611]
[1731022070748,2.6,194.9,194.87,10.44047611]
[1731022070942,9.12247611,194.93,194.88,7.87667611]
[1731022071148,2.6,194.92,194.88,7.87667611]
[1731022071348,2.6,194.92,194.87,7.87667611]
[1731022071349,7.87667611,194.91,194.87,7.87667611]
[1731022071848,7.87667611,194.91,194.87,10.44037611]
[1731022072649,7.87667611,194.9,194.85,7.87667611]
[1731022072951,7.87667611,194.9,194.85,10.44067611]
[1731022073152,10.44017611,194.9,194.85,10.44067611]
[1731022074049,10.44017611,194.9,194.85,2.564]
[1731022074244,2.5636,194.89,194.85,10.44067611]
[1731022074852,2.5636,194.89,194.86,2.564]
[1731022075752,7.87667611,194.88,194.78,6.38715679]
[1731022075954,7.87667611,194.87,194.82,7.87667611]
[1731022076263,10.44057611,194.87,194.83,2.5643]
[1731022076757,10.44087611,194.85,194.81,2.5646]
[1731022076961,7.87667611,194.84,194.82,6.11721625]
[1731022077161,7.87667611,194.84,194.81,2.5646]
[1731022077355,2.5644,194.83,194.82,6.11709137]
[1731022078062,2.5644,194.83,194.79,7.87667611]
[1731022078255,2.5644,194.83,194.8,6.11662805]
[1731022078459,2.5644,194.83,194.79,7.87667611]
[1731022078460,2.5644,194.83,194.81,6.11662805]
[1731022078662,2.5644,194.83,194.79,7.87667611]
[1731022078959,2.5644,194.83,194.8,8.6814504]
[1731022079160,2.5644,194.83,194.8,2.5648]
[1731022080361,2.5441,194.86,194.75,66.03309773]
[1731022080559,2.6,194.87,194.82,7.87667611]
[1731022080760,10.47667611,194.88,194.84,7.87667611]
[1731022080959,2.5639,194.87,194.84,10.44087611]
[1731022081166,2.5246,194.92,194.86,7.87667611]
[1731022081464,10.47667611,194.91,194.86,7.87667611]
[1731022081964,7.87667611,194.91,194.86,7.87667611]
[1731022082163,2.5246,194.92,194.88,7.87667611]
[1731022082358,7.87667611,194.93,194.88,7.87667611]
[1731022082359,10.47667611,194.93,194.88,7.87667611]
[1731022082860,13.03987611,194.93,194.88,10.44037611]
[1731022083260,2.6,194.94,194.9,7.87667611]
[1731022083767,9.07010385,194.94,194.9,7.87667611]
[1731022083958,11.63310385,194.94,194.9,7.87667611]
[1731022085558,7.87667611,194.93,194.89,2.5635]
[1731022086861,10.43977611,194.93,194.88,10.44027611]
[1731022087062,7.87667611,194.93,194.88,7.87667611]
[1731022087864,7.87667611,194.93,194.89,2.5635]
[1731022088064,7.87667611,194.92,194.86,7.87667611]
[1731022088270,7.87667611,194.9,194.86,7.87667611]
[1731022088768,7.87667611,194.9,194.87,2.5638]
[1731022089371,10.43997611,194.92,194.87,2.5638]
[1731022089558,10.43997611,194.92,194.88,7.87667611]
[1731022093062,10.43997611,194.92,194.88,10.44037611]
[1731022095086,2.5633,194.92,194.88,10.44037611]
[1731022100182,2.5633,194.92,194.89,7.87667611]
[1731022100382,2.5633,194.92,194.88,7.87667611]
[1731022100590,10.43997611,194.92,194.88,7.87667611]
[1731022101088,2.5634,194.91,194.88,2.5637]
[1731022101774,2.5634,194.91,194.88,10.44037611]
[1731022102380,2.5634,194.91,194.88,7.87667611]
[1731022102689,10.43997611,194.92,194.88,7.87667611]
[1731022103190,7.87667611,194.88,194.79,6.38880842]
[1731022103392,7.87667611,194.88,194.81,7.87667611]
[1731022103393,7.87667611,194.86,194.81,7.87667611]
[1731022103580,7.87667611,194.86,194.82,6.11755187]
[1731022103889,10.44057611,194.87,194.81,7.87667611]
[1731022104383,10.44057611,194.87,194.83,2.5643]
[1731022105292,7.87667611,194.86,194.81,7.87667611]
[1731022105597,7.87667611,194.85,194.82,6.11814349]
[1731022105783,7.87667611,194.85,194.82,2.5645]
[1731022106478,2.5641,194.86,194.82,2.5645]
[1731022106793,3.8887,194.9,194.85,10.44077611]
[1731022106982,2.6,194.9,194.88,7.87667611]
[1731022107779,5.1635,194.9,194.86,10.44067611]
[1731022114388,2.6,194.9,194.86,10.44067611]
[1731022114586,2.5636,194.89,194.86,10.44067611]
[1731022114991,2.6,194.9,194.86,7.87667611]
[1731022115197,2.6,194.9,194.87,2.5638]
[1731022115896,2.6,194.9,194.87,10.44047611]
[1731022118098,2.6,194.9,194.87,2.5638]
[1731022118698,2.6,194.9,194.86,7.87667611]
[1731022118903,2.6,194.9,194.88,2.5637]
[1731022119098,10.47667611,194.9,194.88,2.5637]
[1731022120298,7.87667611,194.9,194.88,2.5637]
[1731022122902,7.87667611,194.9,194.85,7.87667611]
[1731022123101,7.87667611,194.9,194.87,2.5638]
[1731022123607,10.43997611,194.91,194.85,7.87667611]
[1731022123798,10.43997611,194.91,194.88,2.5637]
[1731022124501,10.43997611,194.91,194.8,2.6]
[1731022124502,7.87667611,194.91,194.8,2.6]
[1731022124703,2.5636,194.9,194.86,2.5639]
[1731022125107,2.5636,194.9,194.85,7.87667611]
[1731022125295,7.87667611,194.87,194.86,8.63393096]
[1731022125500,2.5016,194.91,194.86,6.06993096]
[1731022125701,3.7584,194.91,194.75,5.1307]
[1731022126010,3.7584,194.91,194.79,15.78356424]
[1731022126204,3.7584,194.91,194.8,15.78356424]
[1731022126506,3.7584,194.91,194.82,2.5644]
[1731022126702,7.87667611,194.86,194.83,6.07045038]
[1731022126917,7.87667611,194.86,194.82,2.5644]
[1731022127206,5.1639,194.87,194.84,7.87667611]
[1731022127207,2.6,194.87,194.84,7.87667611]
[1731022127399,6.3584,194.91,194.86,7.87667611]
[1731022127603,14.23507611,194.91,194.86,7.87667611]
[1731022127797,7.87667611,194.9,194.86,7.87667611]
[1731022128503,7.87667611,194.9,194.86,10.44057611]
[1731022129607,2.6,194.91,194.88,7.87667611]
[1731022130798,2.6,194.91,194.88,10.44027611]
[1731022131906,5.163,194.94,194.89,10.44017611]
[1731022132809,7.87667611,194.93,194.89,10.44017611]
[1731022133007,6.48047912,194.93,194.89,7.87667611]
[1731022133212,10.43967611,194.94,194.9,2.5634]
[1731022133409,2.5628,194.95,194.91,7.87667611]
[1731022133613,6.48047912,194.95,194.91,7.87667611]
[1731022133907,7.87667611,194.96,194.92,2.5631]
[1731022134114,10.23647912,194.97,194.93,7.87667611]
[1731022134115,7.67177912,194.97,194.93,7.87667611]
[1731022134409,7.87667611,194.98,194.93,7.87667611]
[1731022134614,7.87667611,194.98,194.93,10.43957611]
[1731022134923,14.3575732,194.99,194.95,7.87667611]
[1731022135211,7.87667611,195.01,194.97,7.87667611]
[1731022135411,7.87667611,195.01,194.95,7.87667611]
[1731022136012,10.43867611,195.01,194.97,2.5625]
[1731022136214,16.9195732,195.01,194.97,2.5625]
[1731022136409,6.48089709,195.0,194.97,2.5625]
[1731022136913,10.43867611,195.01,194.97,2.5625]
[1731022137109,6.48089709,195.0,194.97,2.5625]
[1731022137408,10.43867611,195.01,194.97,2.5625]
[1731022137717,16.9195732,195.01,194.97,2.5625]
[1731022137916,6.48089709,195.0,194.96,2.5626]
[1731022138215,7.87667611,194.97,194.9,2.6]
[1731022138415,7.87667611,194.97,194.93,7.87667611]
[1731022138708,7.87667611,194.97,194.94,2.5629]
[1731022140108,7.87667611,194.97,194.93,7.87667611]
[1731022140510,10.43927611,194.97,194.93,7.87667611]
[1731022140710,10.43927611,194.97,194.93,10.43967611]
[1731022140914,7.87667611,194.97,194.93,7.87667611]
[1731022141117,2.5627,194.96,194.93,7.87667611]
[1731022141608,10.43927611,194.97,194.93,10.43967611]
[1731022145619,2.5626,194.97,194.95,7.87667611]
[1731022146218,6.46233773,195.04,194.96,7.87667611]
[1731022146219,7.87667611,195.01,194.96,7.87667611]
[1731022146520,10.45667611,195.01,194.96,7.87667611]
[1731022146721,2.5621,195.0,194.96,10.43917611]
[1731022146915,2.58,195.01,194.98,7.87667611]
[1731022147424,7.87667611,195.03,194.98,7.87667611]
[1731022147613,10.45667611,195.03,194.98,7.87667611]
[1731022148720,2.562,195.02,194.98,10.43907611]
[1731022150118,2.562,195.02,194.98,7.87667611]
[1731022150725,7.87667611,195.01,194.98,7.87667611]
[1731022152619,7.87667611,194.98,194.94,2.5628]
[1731022152923,2.58,195.03,194.95,7.87667611]
[1731022153224,2.5622,195.0,194.96,7.87667611]
[1731022154219,2.5623,194.99,194.96,7.87667611]
[1731022157126,2.5623,194.99,194.95,2.5628]
[1731022157127,10.43897611,194.99,194.95,2.5628]
[1731022157324,2.5624,194.98,194.94,10.43957611]
[1731022157826,7.87667611,194.99,194.94,10.43957611]
[1731022158326,10.43907611,194.99,194.95,2.5628]
[1731022161235,10.43907611,194.99,194.95,10.43947611]
[1731022164734,10.43907611,194.99,194.95,2.5628]
[1731022164931,10.43907611,194.99,194.95,10.43947611]
[1731022165635,2.5624,194.99,194.95,10.43947611]
[1731022169628,7.87667611,195.0,194.95,7.87667611]
[1731022169830,10.43887611,195.0,194.96,2.5626]
[1731022170232,6.46233773,195.04,194.97,7.87667611]
[1731022170435,2.5619,195.02,194.98,7.87667611]
[1731022170640,2.58,195.03,194.98,7.87667611]
[1731022171037,2.562,195.01,194.98,7.87667611]
[1731022171538,2.58,195.03,194.98,7.87667611]
[1731022171735,2.562,195.02,194.98,10.43907611]
[1731022173035,2.562,195.02,194.98,2.5624]
[1731022173437,10.43867611,195.02,194.98,2.5624]
[1731022174140,10.43867611,195.02,194.97,7.87667611]
[1731022174141,2.562,195.01,194.97,10.43917611]
[1731022174941,2.562,195.01,194.98,2.5624]
[1731022178142,2.5619,195.02,194.98,2.5624]
[1731022178945,2.58,195.03,194.99,2.5622]
[1731022178946,5.1418,195.03,194.99,2.5622]
[1731022179541,10.43877611,195.01,194.93,2.563]
[1731022179738,7.87667611,194.99,194.93,7.87667611]
[1731022180147,10.43897611,194.99,194.94,2.5628]
[1731022181643,13.01907611,194.98,194.94,2.5628]
[1731022181942,13.01907611,194.98,194.85,7.87667611]
[1731022181943,7.87667611,194.95,194.85,7.87667611]
[1731022182150,7.87667611,194.9,194.85,7.87667611]
[1731022182336,7.87667611,194.9,194.86,2.5638]
[1731022182541,7.87667611,194.9,194.85,7.87667611]
[1731022183642,7.87667611,194.9,194.87,7.87667611]
[1731022183951,7.87667611,194.9,194.87,10.44047611]
[1731022184541,7.87667611,194.9,194.87,2.5638]
[1731022186851,7.87667611,194.9,194.88,2.5637]
[1731022187249,7.87667611,194.9,194.8,2.58]
[1731022187446,10.44027611,194.89,194.85,10.44077611]
[1731022188853,2.5635,194.9,194.86,10.44057611]
[1731022189054,2.5635,194.9,194.86,2.5639]
[1731022189743,7.87667611,194.89,194.86,2.5639]
[1731022193350,7.87667611,194.86,194.76,66.03032822]
[1731022193555,7.87667611,194.86,194.81,7.87667611]
[1731022193754,10.45667611,194.86,194.81,7.87667611]
[1731022194155,10.45667611,194.86,194.83,2.5643]
[1731022195761,10.45667611,194.86,194.84,2.5642]
[1731022196552,10.45667611,194.86,194.85,2.5641]
[1731022196553,2.58,194.86,194.85,2.5641]
[1731022196850,2.58,194.86,194.85,10.44077611]
[1731022197265,7.87667611,194.89,194.85,7.87667611]
[1731022197558,2.58,194.88,194.87,7.87667611]
[1731022198262,2.3932,194.94,194.88,2.5637]
[1731022198263,2.58,194.9,194.88,2.5637]
[1731022199659,2.58,194.9,194.89,2.5636]
[1731022200559,2.58,194.92,194.9,2.5633]
[1731022200764,2.58,194.92,194.81,2.57304483]
[1731022200765,2.58,194.94,194.91,7.87667611]
[1731022200961,2.58,194.94,194.92,7.87667611]
[1731022201165,2.58,194.94,194.93,2.563]
[1731022202063,2.58,194.94,194.91,7.87667611]
[1731022202064,2.58,194.94,194.92,2.5631]
[1731022202258,7.87667611,194.94,194.92,2.5631]
[1731022204862,2.58,194.95,194.92,2.5631]
[1731022205969,2.58,195.07,194.99,2.5622]
[1731022206169,7.87667611,195.04,194.99,7.87667611]
[1731022207072,7.87667611,195.02,194.97,7.87667611]
[1731022207468,14.1001081,195.06,194.97,7.87667611]
[1731022207670,14.1001081,195.06,194.93,2.58]
[1731022207671,2.5615,195.05,195.0,7.87667611]
[1731022207871,10.43817611,195.05,195.0,7.87667611]
[1731022208172,7.87667611,195.04,195.0,7.87667611]
[1731022208768,7.33649761,195.06,195.02,2.5619]
[1731022208981,7.33649761,195.06,195.02,7.87667611]
[1731022208982,7.87667611,195.06,195.02,7.87667611]
[1731022209577,7.87667611,195.06,195.03,2.5617]
[1731022209875,7.87667611,195.06,195.02,7.87667611]
[1731022210071,7.87667611,195.06,195.03,2.5617]
[1731022210274,7.87667611,195.03,194.93,2.58]
[1731022210470,7.87667611,195.01,194.84,5.1284]
[1731022210666,7.87667611,194.96,194.9,2.58]
[1731022210869,7.87667611,194.96,194.84,5.1284]
[1731022211077,7.87667611,194.96,194.88,2.58]
[1731022211278,7.87667611,194.95,194.92,2.5631]
[1731022215575,7.87667611,194.94,194.89,7.87667611]
[1731022216071,2.5628,194.95,194.91,7.87667611]
[1731022216281,7.87667611,194.97,194.92,10.43977611]
[1731022216783,7.87667611,194.97,194.92,7.87667611]
[1731022217482,7.87667611,194.97,194.94,2.5629]
[1731022217682,2.58,195.01,194.96,7.87667611]
[1731022217986,2.58,195.01,194.98,7.87667611]
[1731022218286,10.45667611,195.01,194.96,7.87667611]
[1731022218788,10.45667611,195.01,194.97,2.5624]
[1731022219381,10.45667611,195.01,194.96,7.87667611]
[1731022219582,10.45667611,195.01,194.98,2.5623]
[1731022221390,7.87667611,194.99,194.95,2.5627]
[1731022221586,7.87667611,194.98,194.93,7.87667611]
[1731022222694,7.87667611,194.98,194.9,2.58]
[1731022222695,7.87667611,194.96,194.9,2.58]
[1731022222996,7.87667611,194.96,194.91,7.87667611]
[1731022223181,7.87667611,194.95,194.86,2.58]
[1731022223385,7.87667611,194.95,194.89,7.87667611]
[1731022224188,10.43957611,194.95,194.91,2.5633]
[1731022224584,2.5629,194.95,194.91,2.5633]
[1731022224790,2.58,194.96,194.9,7.87667611]
[1731022224791,10.45667611,194.96,194.9,7.87667611]
[1731022224986,2.58,194.96,194.92,7.87667611]
[1731022225188,2.58,194.96,194.94,7.87667611]
[1731022225395,2.58,194.96,194.91,12.3112307]
[1731022225796,2.58,194.96,194.93,2.563]
[1731022226691,2.58,194.98,194.94,2.5628]
[1731022226894,2.58,194.98,194.91,12.3112307]
[1731022227088,2.58,194.98,194.95,2.5627]
[1731022230592,2.58,194.98,194.96,2.5626]
[1731022230799,9.32657179,195.02,194.94,12.3112307]
[1731022230988,6.74657179,195.02,194.96,12.3112307]
[1731022231194,6.74657179,195.02,195.01,2.562]
[1731022231995,6.74657179,195.02,195.01,14.8732307]
[1731022233490,1.1725,195.07,195.01,12.3112307]
[1731022233692,1.1725,195.07,195.05,2.5615]
[1731022234999,1.1725,195.07,195.04,2.5615]
[1731022236000,2.5615,195.05,194.96,12.3112307]
[1731022236203,1.1725,195.07,194.9,12.3112307]
[1731022236204,1.1951,195.06,194.98,12.3112307]
[1731022236391,7.91514753,195.07,194.98,12.3112307]
[1731022236600,2.58,195.08,195.05,2.5614]
[1731022239095,2.58,195.08,195.01,12.3112307]
[1731022239291,2.58,195.08,195.05,2.5614]
[1731022239709,2.58,195.08,195.01,12.3112307]
[1731022240001,5.1411,195.08,195.01,12.3112307]
[1731022240199,2.58,195.08,195.01,12.3112307]
[1731022240393,2.58,195.09,195.01,12.3112307]
[1731022240700,2.58,195.09,195.03,2.5617]
[1731022240701,5.141,195.09,195.03,2.5617]
[1731022240899,5.141,195.09,195.01,12.3112307]
[1731022241392,2.5611,195.08,195.04,2.5616]
[1731022242200,5.141,195.09,195.04,2.5616]
[1731022242399,2.58,195.09,195.01,12.3112307]
[1731022242598,2.58,195.09,195.06,2.5612]
[1731022242798,2.58,195.09,195.01,12.3112307]
[1731022243001,9.19922694,195.1,195.07,2.5611]
[1731022243198,2.4594,195.1,195.07,2.5611]
[1731022243597,5.1407,195.12,195.0,2.58]
[1731022243800,13.95986133,195.13,195.03,12.3112307]
[1731022243801,6.73982694,195.13,195.03,12.3112307]
[1731022244095,5.1404,195.13,195.03,12.3112307]
[1731022244400,5.1404,195.13,195.09,2.5609]
[1731022244802,2.5606,195.12,195.09,2.5609]
[1731022245197,2.58,195.13,195.09,2.5609]
[1731022245500,12.3112307,195.09,194.95,68.46301714]
[1731022245702,12.3112307,195.09,194.97,12.3112307]
[1731022245899,2.5613,195.06,194.97,12.3112307]
[1731022246410,2.5613,195.06,194.99,2.5622]
[1731022246599,2.5613,195.06,194.97,12.3112307]
[1731022246800,12.3112307,195.06,194.97,12.3112307]
[1731022246996,12.3112307,195.06,194.95,2.58]
[1731022247203,12.3112307,195.06,195.0,2.562]
[1731022247405,2.5618,195.03,195.0,2.562]
[1731022249401,19.04971371,195.06,194.95,2.58]
[1731022249609,2.5617,195.04,194.99,2.5621]
[1731022249904,6.73848301,195.06,194.95,2.58]
[1731022250206,2.5616,195.04,194.94,12.3112307]
[1731022251007,6.73848301,195.06,194.97,12.3112307]
[1731022251008,9.29988301,195.06,194.97,12.3112307]
[1731022251202,2.5614,195.06,195.02,2.5618]
[1731022251602,2.5614,195.06,194.97,12.3112307]
[1731022251803,2.5614,195.06,195.03,2.5617]
[1731022253911,5.1414,195.06,195.03,2.5617]
[1731022254814,5.1414,195.06,194.97,12.3112307]
[1731022255012,5.1414,195.06,195.02,2.5618]
[1731022256518,5.1414,195.06,195.03,2.5617]
[1731022256713,2.58,195.06,195.03,2.5617]
[1731022257018,7.6312,195.07,195.03,2.5617]
[1731022257518,7.87342961,195.06,195.03,2.5617]
[1731022259709,14.6123854,195.06,195.03,2.5617]
[1731022259911,7.87342961,195.06,195.03,2.5617]
[1731022261217,7.87342961,195.06,194.93,2.58]
[1731022261218,7.87342961,195.05,194.93,2.58]
[1731022261406,7.87342961,195.01,194.96,7.87342961]
[1731022262114,7.87342961,194.99,194.96,2.5625]
[1731022262313,7.87342961,194.99,194.95,7.87342961]
[1731022262613,2.562,195.01,194.97,2.5625]
[1731022262815,10.43542961,195.01,194.97,2.5625]
[1731022263513,2.562,195.01,194.97,2.5625]
[1731022263712,2.5621,195.0,194.97,2.5625]
[1731022264219,2.56,195.02,194.96,12.30833859]
[1731022264517,2.56,195.02,194.99,2.5622]
[1731022266416,2.56,195.02,194.93,12.30833859]
[1731022266614,14.87043859,195.01,194.91,78.28292559]
[1731022267012,14.87043859,195.01,194.96,2.5626]
[1731022267213,12.30833859,195.01,194.96,2.5626]
[1731022267409,2.5622,195.0,194.96,2.5626]
[1731022268615,2.5622,195.0,194.97,2.5625]
[1731022268820,2.5615,195.05,194.96,12.30833859]
[1731022269020,5.1215,195.05,194.96,12.30833859]
[1731022269225,5.1215,195.05,195.01,2.5619]
[1731022269526,1.2831,195.06,194.98,12.30833859]
[1731022269820,2.56,195.05,195.03,2.5616]
[1731022271013,14.86833859,195.05,194.96,12.30833859]
[1731022271314,14.86833859,195.05,194.91,5.1266]
[1731022271315,12.30833859,195.03,194.93,14.86833859]
[1731022271516,12.30833859,195.03,194.99,2.5622]
[1731022272124,2.5619,195.02,194.98,2.5624]
[1731022273116,12.30833859,195.03,194.93,2.56]
[1731022273323,2.5621,195.0,194.96,2.5625]
[1731022273520,5.1221,195.0,194.96,2.5625]
[1731022273725,5.1221,195.0,194.91,12.30833859]
[1731022273924,5.1221,195.0,194.97,2.5625]
[1731022274126,5.1221,195.0,194.91,12.30833859]
[1731022274327,5.1221,195.0,194.96,2.5626]
[1731022275319,17.43043859,195.0,194.96,2.5626]
[1731022276622,12.30833859,194.98,194.86,12.30833859]
[1731022276824,12.30833859,194.98,194.87,5.85352861]
[1731022277031,12.30833859,194.98,194.88,5.85352861]
[1731022277228,2.5627,194.96,194.93,2.563]
[1731022277431,2.56,194.95,194.93,2.563]
[1731022280033,6.2824,194.99,194.94,2.5629]
[1731022280339,2.56,194.98,194.91,12.30833859]
[1731022281937,2.5625,194.97,194.88,12.30833859]
[1731022282533,2.5627,194.96,194.88,12.30833859]
[1731022283138,2.5627,194.96,194.9,2.5634]
[1731022283449,2.5627,194.96,194.88,12.30833859]
[1731022283740,2.5627,194.96,194.92,2.5631]
[1731022283945,2.5629,194.95,194.85,78.30518045]
[1731022284139,2.5629,194.95,194.86,5.85268859]
[1731022284338,2.5629,194.95,194.91,2.5632]
[1731022284646,2.5629,194.95,194.85,78.30518045]
[1731022284947,2.5627,194.96,194.93,2.563]
[1731022285944,16.07103859,194.98,194.94,2.5629]
[1731022286332,18.63353859,194.98,194.94,2.5629]
[1731022286545,16.07103859,194.98,194.94,2.5629]
[1731022286950,13.51103859,194.98,194.94,2.5629]
[1731022287240,2.58,194.97,194.94,2.5629]
[1731022290138,2.5628,194.96,194.85,12.30833859]
[1731022290337,2.5628,194.96,194.86,5.85178991]
[1731022290538,2.58,194.97,194.88,12.30833859]
[1731022290738,2.58,194.97,194.94,2.5629]
[1731022290949,2.58,194.97,194.9,12.30833859]
[1731022292849,2.58,194.97,194.95,2.5628]
[1731022293355,2.58,194.97,194.9,12.30833859]
[1731022294849,2.58,194.97,194.95,2.5627]
[1731022297457,2.58,194.97,194.86,12.30833859]
[1731022297651,2.5628,194.95,194.92,2.5632]
[1731022297851,2.58,194.97,194.89,12.30833859]
[1731022298259,2.58,194.97,194.95,2.5628]
[1731022299061,2.58,194.97,194.96,2.5627]
[1731022299248,1.2436,194.99,194.91,12.30833859]
[1731022300149,1.2436,194.99,194.97,2.5625]
[1731022303068,2.56,195.0,194.97,2.5625]
[1731022303360,2.56,195.0,194.91,12.30833859]
[1731022303556,6.73589074,195.01,194.99,2.5623]
[1731022303756,2.56,195.02,194.99,2.5623]
[1731022303952,7.90249074,195.05,195.01,2.562]
[1731022304160,3.7266,195.05,194.96,12.30833859]
[1731022304357,17.63783098,195.06,194.98,12.30833859]
[1731022304560,10.58139074,195.06,195.03,2.5617]
[1731022305163,8.02139074,195.06,194.98,12.30833859]
[1731022305360,6.73589074,195.06,195.04,2.5616]
[1731022305563,6.73589074,195.06,195.0,12.30833859]
[1731022306262,2.56,195.09,195.05,2.5615]
[1731022306455,2.56,195.09,195.0,12.30833859]
[1731022308064,2.56,195.09,195.06,2.5613]
[1731022308461,2.56,195.09,194.98,2.56]
[1731022308664,12.30833859,195.07,194.98,2.56]
[1731022309460,12.30833859,195.07,194.96,12.30833859]
[1731022309660,2.5616,195.05,195.01,2.562]
[1731022309962,2.5616,195.05,194.96,12.30833859]
[1731022310868,2.5616,195.05,195.01,2.562]
[1731022311664,2.5616,195.05,194.96,12.30833859]
[1731022311868,2.5616,195.05,195.0,2.5621]
[1731022312358,19.04422933,195.07,195.0,2.5621]
[1731022312359,5.1216,195.04,195.0,2.5621]
[1731022312566,14.86833859,195.04,194.94,14.86833859]
[1731022312955,2.5618,195.03,194.98,2.5623]
[1731022313163,9.29769074,195.03,194.98,2.5623]
[1731022313363,2.5618,195.03,194.98,2.5623]
[1731022314456,9.29215811,195.03,194.98,2.5623]
[1731022314656,9.29215811,195.03,194.91,2.56]
[1731022314657,12.30833859,195.02,194.91,2.56]
[1731022315061,12.30833859,194.99,194.89,12.30833859]
[1731022315263,2.56,194.98,194.89,12.30833859]
[1731022315670,2.56,194.98,194.87,12.30833859]
[1731022315966,2.5625,194.97,194.88,5.85708398]
[1731022316174,2.5625,194.97,194.89,5.85708398]
[1731022316372,5.1224,194.98,194.93,2.5629]
[1731022316559,5.1224,194.98,194.89,12.30833859]
[1731022316763,2.56,194.98,194.89,12.30833859]
[1731022317067,2.56,194.99,194.92,12.30833859]
[1731022317368,2.56,194.99,194.95,2.5628]
[1731022317664,2.56,194.99,194.92,12.30833859]
[1731022317871,2.56,194.99,194.95,2.5627]
[1731022318066,2.56,194.99,194.92,12.30833859]
[1731022318464,2.56,194.99,194.96,2.5626]
[1731022318965,5.1223,194.99,194.96,2.5626]
[1731022319368,2.56,194.99,194.92,12.30833859]
[1731022319972,2.56,194.99,194.96,2.5625]
[1731022320167,2.56,194.99,194.94,12.30833859]
[1731022320568,2.56,195.03,194.99,2.5622]
[1731022321469,13.78916909,195.04,194.99,2.5622]
[1731022321676,2.56,195.03,194.99,2.5622]
[1731022321875,5.1218,195.03,194.99,2.5622]
[1731022322573,2.56,195.03,195.0,2.5621]
[1731022322967,2.56,195.03,194.94,12.30833859]
[1731022323278,2.56,195.03,194.98,2.5623]
[1731022323279,5.1219,195.03,194.98,2.5623]
[1731022323772,2.56,195.03,194.98,2.5623]
[1731022323978,2.5619,195.02,194.98,2.5623]
[1731022325168,2.56,195.03,194.92,12.30833859]
[1731022325469,2.5621,195.0,194.92,12.30833859]
[1731022325684,12.30833859,195.02,194.92,12.30833859]
[1731022325972,2.562,195.01,194.96,2.5625]
[1731022326176,2.562,195.01,194.92,12.30833859]
[1731022326380,19.03874647,195.02,194.92,12.30833859]
[1731022326575,12.30833859,195.02,194.92,12.30833859]
[1731022326877,2.5621,195.0,194.92,12.30833859]
[1731022327273,2.5621,195.0,194.96,2.5625]
[1731022327774,12.30833859,195.0,194.94,2.5628]
[1731022328276,12.30833859,195.0,194.89,12.30833859]
[1731022328574,12.30833859,195.0,194.93,2.563]
[1731022328779,12.30833859,194.97,194.88,65.98624389]
[1731022328973,2.5628,194.96,194.88,65.98624389]